bitfinex/quotes_BTCUSD_20240906
["timestamp","ask_amount","ask_price","bid_price","bid_amount"]
[1725657001811,0.000816,53336.0,53327.0,0.04388]
[1725657002026,0.05537663,53334.0,53326.0,0.4148]
[1725657002235,0.05537663,53327.0,53319.0,0.4148]
[1725657002452,0.08318315,53328.0,53326.0,0.012]
[1725657002670,0.27163637,53327.0,53312.0,0.4148]
[1725657002894,0.1918,53331.0,53312.0,0.4148]
[1725657002895,0.2492774,53319.0,53316.0,0.55430836]
[1725657003101,0.68410882,53326.0,53312.0,0.4148]
[1725657003102,0.59249369,53318.0,53312.0,0.4148]
[1725657003317,0.08316159,53314.0,53312.0,0.4148]
[1725657003524,0.08316159,53313.0,53306.0,0.4051]
[1725657003731,0.0554401,53311.0,53306.0,0.4051]
[1725657003953,0.0554401,53316.0,53307.0,0.05858]
[1725657004157,0.1,53318.0,53308.0,0.4051]
[1725657004376,0.0554401,53318.0,53308.0,0.4051]
[1725657004586,0.0554401,53316.0,53308.0,0.4051]
[1725657005028,0.187585,53309.0,53308.0,0.4051]
[1725657005673,0.0554401,53314.0,53296.0,0.02]
[1725657005674,0.0554401,53314.0,53296.0,0.1866]
[1725657005675,0.18762,53299.0,53296.0,0.1866]
[1725657006142,0.18762,53299.0,53289.0,0.1866]
[1725657006379,0.2707814,53299.0,53294.0,0.4051]
[1725657006618,0.2707814,53299.0,53277.0,0.02]
[1725657006619,0.2707814,53299.0,53278.0,0.1866]
[1725657006620,0.2062,53299.0,53278.0,0.1866]
[1725657006831,0.2062,53299.0,53283.0,0.55430836]
[1725657006832,0.187673,53284.0,53283.0,0.55430836]
[1725657007038,0.187673,53284.0,53278.0,0.4051]
[1725657007039,0.13857107,53288.0,53278.0,0.4051]
[1725657007040,0.187691,53279.0,53278.0,0.4051]
[1725657007241,0.187691,53279.0,53278.0,0.44561]
[1725657008159,0.08313719,53288.0,53281.0,0.01]
[1725657008160,0.187679,53283.0,53281.0,0.01]
[1725657008388,0.05542915,53290.0,53278.0,0.414803]
[1725657008389,0.187666,53286.0,53285.0,0.4151]
[1725657008804,0.05542915,53290.0,53286.0,0.01]
[1725657009017,0.187659,53288.0,53287.0,0.04351]
[1725657009233,0.05542915,53290.0,53289.0,0.01]
[1725657009234,0.27247986,53290.0,53289.0,0.01]
[1725657009441,0.27247986,53290.0,53289.0,0.03]
[1725657009442,0.08482586,53290.0,53289.0,0.03]
[1725657009651,0.08482586,53290.0,53289.0,0.4351]
[1725657009861,0.08482586,53290.0,53289.0,0.4151]
[1725657009862,0.27247786,53290.0,53289.0,0.4151]
[1725657010077,0.27247786,53290.0,53289.0,0.481621]
[1725657010287,0.27247786,53290.0,53289.0,0.503621]
[1725657010288,0.08482586,53290.0,53289.0,0.503621]
[1725657010514,0.05542915,53290.0,53289.0,0.691276]
[1725657010738,0.05542915,53290.0,53289.0,1.066587]
[1725657010944,0.03637538,53290.0,53289.0,1.441898]
[1725657011169,0.05543082,53312.0,53301.0,0.01]
[1725657011390,0.000816,53321.0,53310.0,0.4051]
[1725657011391,0.187578,53311.0,53310.0,0.4051]
[1725657011596,0.0554352,53321.0,53310.0,0.4051]
[1725657011811,0.187578,53311.0,53310.0,0.4051]
[1725657012017,0.187578,53311.0,53310.0,0.44561]
[1725657012226,0.187578,53311.0,53310.0,0.4051]
[1725657012696,0.187578,53311.0,53310.0,0.4181]
[1725657012941,0.187575,53312.0,53311.0,0.1866]
[1725657013156,0.0554352,53324.0,53315.0,0.01]
[1725657013371,0.18755,53319.0,53318.0,0.01]
[1725657013612,0.18755,53319.0,53318.0,0.073885]
[1725657014932,0.187539,53322.0,53321.0,0.01]
[1725657015146,0.187543,53321.0,53320.0,0.03]
[1725657016006,0.187543,53321.0,53315.0,0.4051]
[1725657016007,0.02937793,53322.0,53315.0,0.4051]
[1725657016215,0.21691693,53322.0,53321.0,0.014]
[1725657016443,0.187557,53317.0,53316.0,0.00375032]
[1725657016635,0.18756,53316.0,53315.0,0.4051]
[1725657017244,0.21694129,53316.0,53315.0,0.4051]
[1725657018151,0.0554256,53326.0,53315.0,0.4051]
[1725657018152,0.05543213,53326.0,53315.0,0.4051]
[1725657018356,0.21694211,53316.0,53315.0,0.4051]
[1725657018600,0.21694211,53316.0,53315.0,0.45961]
[1725657018815,0.18756,53316.0,53315.0,0.45961]
[1725657019050,0.21694291,53316.0,53315.0,0.4321]
[1725657019256,0.21694291,53316.0,53315.0,0.4051]
[1725657019462,0.1,53327.0,53315.0,0.4051]
[1725657019463,0.05542175,53327.0,53315.0,0.4051]
[1725657019670,0.05542175,53329.0,53316.0,0.00375006]
[1725657019870,0.002,53351.0,53315.0,0.4151]
[1725657019871,0.05542175,53330.0,53315.0,0.4151]
[1725657020078,0.05542175,53328.0,53316.0,0.04251]
[1725657020304,0.024,53337.0,53316.0,0.04251]
[1725657020305,0.05542175,53330.0,53316.0,0.04251]
[1725657020515,0.05542175,53330.0,53317.0,0.00375014]
[1725657020747,0.05542175,53332.0,53317.0,0.00375014]
[1725657020948,0.05542175,53328.0,53315.0,0.4051]
[1725657021154,0.05542175,53329.0,53315.0,0.45961]
[1725657021390,0.023,53328.0,53315.0,0.45961]
[1725657021616,0.023,53328.0,53315.0,0.44561]
[1725657021900,0.023,53328.0,53317.0,0.005]
[1725657022106,0.023,53328.0,53315.0,0.44561]
[1725657022107,0.05542175,53330.0,53318.0,0.0137501]
[1725657022336,0.05542175,53330.0,53318.0,0.04793601]
[1725657022540,0.05542175,53333.0,53318.0,0.05168587]
[1725657022739,0.1,53334.0,53318.0,0.05168587]
[1725657022740,0.05542175,53332.0,53318.0,0.04793601]
[1725657022949,0.05542175,53331.0,53318.0,0.05168584]
[1725657023178,0.05542175,53332.0,53319.0,0.10427262]
[1725657023389,0.1,53334.0,53319.0,0.10427262]
[1725657023390,0.15542175,53334.0,53319.0,0.10427262]
[1725657023589,0.1,53333.0,53318.0,0.05168584]
[1725657023793,0.05540249,53334.0,53318.0,0.05168584]
[1725657024220,0.05540249,53334.0,53318.0,0.04793601]
[1725657024424,0.05540249,53334.0,53315.0,0.406732]
[1725657024425,0.023,53333.0,53316.0,0.00374976]
[1725657024667,0.05540249,53329.0,53318.0,0.009]
[1725657024893,0.023,53328.0,53318.0,0.009]
[1725657025138,0.023,53328.0,53318.0,0.04194818]
[1725657025391,0.05540249,53328.0,53318.0,0.01175017]
[1725657025604,0.05540249,53329.0,53318.0,0.00375017]
[1725657025889,0.15540249,53330.0,53318.0,0.00375017]
[1725657026124,0.15540249,53330.0,53318.0,0.01775017]
[1725657026383,0.002,53349.0,53318.0,0.01775017]
[1725657026384,0.05540249,53328.0,53318.0,0.014]
[1725657026864,0.1,53332.0,53318.0,0.01775037]
[1725657026865,0.07840249,53327.0,53318.0,0.01775037]
[1725657027097,0.05540249,53326.0,53319.0,0.00375015]
[1725657027328,0.05540249,53331.0,53319.0,0.00375015]
[1725657027594,0.05540249,53332.0,53322.0,0.01]
[1725657027830,0.1954,53344.0,53324.0,0.3751]
[1725657027831,0.05621849,53336.0,53324.0,0.3751]
[1725657028052,0.05621849,53336.0,53325.0,0.06529231]
[1725657028279,0.000816,53336.0,53325.0,0.06529231]
[1725657028537,0.000816,53336.0,53327.0,0.01]
[1725657028743,0.000816,53336.0,53325.0,0.06529231]
[1725657028744,0.02937833,53334.0,53325.0,0.06154294]
[1725657028965,0.02937833,53334.0,53326.0,0.04666429]
[1725657029168,0.02937833,53334.0,53324.0,0.3751]
[1725657029384,0.08478082,53334.0,53324.0,0.3751]
[1725657029589,0.05540249,53333.0,53324.0,0.3751]
[1725657030032,0.02937833,53334.0,53324.0,0.3751]
[1725657030033,0.33389452,53332.0,53324.0,0.3751]
[1725657030255,0.05540249,53325.0,53324.0,0.3751]
[1725657030462,0.05540249,53325.0,53316.0,0.3751]
[1725657030463,0.023,53325.0,53316.0,0.3751]
[1725657030673,0.07840907,53324.0,53317.0,0.55430836]
[1725657030876,0.08479233,53323.0,53316.0,0.3751]
[1725657031100,0.08479233,53323.0,53315.0,0.001632]
[1725657031101,0.08309203,53321.0,53315.0,0.001632]
[1725657031301,0.05540907,53319.0,53315.0,0.001632]
[1725657031528,0.04861564,53318.0,53315.0,0.001632]
[1725657031731,0.14861564,53318.0,53315.0,0.001632]
[1725657031960,0.14861564,53318.0,53317.0,0.012]
[1725657032165,0.43468213,53318.0,53315.0,0.001632]
[1725657032386,0.5244,53316.0,53315.0,0.001632]
[1725657032596,0.93987808,53316.0,53315.0,0.00887476]
[1725657032798,0.93987808,53316.0,53301.0,0.55430836]
[1725657032799,1.51846685,53316.0,53301.0,0.55430836]
[1725657033012,0.05539503,53305.0,53301.0,0.55430836]
[1725657033218,0.05539503,53305.0,53290.0,0.3751]
[1725657033219,0.11079006,53303.0,53290.0,0.3751]
[1725657033547,0.05539552,53296.0,53290.0,0.3751]
[1725657033724,0.08309328,53298.0,53290.0,0.3751]
[1725657033725,0.05539552,53295.0,53290.0,0.3751]
[1725657033934,0.05539552,53295.0,53290.0,0.41261]
[1725657033935,0.02553686,53295.0,53290.0,0.41261]
[1725657034370,0.08309328,53301.0,53290.0,0.41261]
[1725657034371,0.05539552,53301.0,53290.0,0.41261]
[1725657034612,0.02549006,53294.0,53291.0,0.00375191]
[1725657034847,0.1,53300.0,53294.0,0.3751]
[1725657035063,0.05539552,53303.0,53295.0,0.03888519]
[1725657035283,0.05539552,53303.0,53296.0,0.00375168]
[1725657035522,0.1,53304.0,53295.0,0.03888519]
[1725657035523,0.15539552,53304.0,53295.0,0.03888519]
[1725657035727,0.15539552,53304.0,53294.0,0.3751]
[1725657035728,0.05539552,53303.0,53294.0,0.3751]
[1725657035940,0.1,53304.0,53295.0,0.00375171]
[1725657036156,0.02940949,53301.0,53295.0,0.00375171]
[1725657036365,0.023,53300.0,53295.0,0.00375171]
[1725657036777,0.02940949,53301.0,53296.0,0.1869]
[1725657037010,0.02940949,53301.0,53298.0,0.3851]
[1725657037224,0.02940949,53301.0,53299.0,0.00375139]
[1725657037686,0.02940949,53301.0,53298.0,0.3751]
[1725657038964,0.023,53300.0,53298.0,0.3891]
[1725657039585,0.023,53300.0,53298.0,0.4031]
[1725657039803,0.02940949,53301.0,53299.0,0.06275172]
[1725657040031,0.02940949,53301.0,53300.0,0.4118]
[1725657040437,0.02940949,53301.0,53300.0,0.4018]
[1725657041305,0.05539552,53313.0,53301.0,0.01]
[1725657041538,0.15539552,53313.0,53302.0,0.003751]
[1725657041731,0.04845013,53312.0,53303.0,0.0474551]
[1725657041937,0.14845013,53312.0,53304.0,0.00375105]
[1725657042146,0.14845013,53312.0,53299.0,0.059]
[1725657042147,0.20384565,53312.0,53305.0,0.4018]
[1725657042355,0.05539552,53311.0,53305.0,0.4018]
[1725657042560,0.02120953,53310.0,53305.0,0.4018]
[1725657042771,0.023,53309.0,53306.0,0.04018]
[1725657043231,0.08309328,53317.0,53305.0,0.4018]
[1725657043232,0.02120953,53308.0,53307.0,0.55430836]
[1725657043441,0.02120953,53308.0,53305.0,0.4018]
[1725657043443,0.023,53308.0,53305.0,0.4018]
[1725657043658,0.1662165,53326.0,53305.0,0.4018]
[1725657043659,0.13876758,53321.0,53305.0,0.4018]
[1725657043887,0.13876758,53325.0,53315.0,0.3898]
[1725657044095,0.05550703,53328.0,53316.0,0.04949806]
[1725657044309,0.08326055,53330.0,53316.0,0.04949806]
[1725657044310,0.05550703,53330.0,53316.0,0.04949806]
[1725657044735,0.05550703,53331.0,53316.0,0.04949806]
[1725657044957,0.190716,53336.0,53316.0,0.04949806]
[1725657044958,0.05550703,53330.0,53316.0,0.04949806]
[1725657045379,0.05550703,53330.0,53316.0,0.059748]
[1725657045579,0.05550703,53330.0,53317.0,0.0449548]
[1725657045786,0.05550703,53330.0,53317.0,0.04870491]
[1725657045997,0.05550703,53332.0,53322.0,0.3898]
[1725657046460,0.05632303,53333.0,53323.0,0.00374985]
[1725657046670,0.05632303,53333.0,53324.0,0.03935498]
[1725657046876,0.05632303,53333.0,53322.0,0.3898]
[1725657046877,0.08328031,53336.0,53322.0,0.3898]
[1725657047085,0.05551676,53329.0,53316.0,0.3948]
[1725657047310,0.05551676,53329.0,53317.0,0.55430836]
[1725657047311,0.05651676,53328.0,53317.0,0.55430836]
[1725657047532,0.05551676,53323.0,53316.0,0.005]
[1725657047963,0.023,53322.0,53312.0,0.00375064]
[1725657048168,0.05551676,53318.0,53313.0,0.05833506]
[1725657048370,0.023,53317.0,53316.0,0.014]
[1725657048904,0.023,53317.0,53313.0,0.05833506]
[1725657049082,0.023,53317.0,53316.0,0.01]
[1725657049301,0.023,53321.0,53316.0,0.01]
[1725657049487,0.023,53321.0,53315.0,0.001632]
[1725657049697,0.02120953,53320.0,53316.0,0.014]
[1725657049920,0.023,53319.0,53316.0,0.014]
[1725657050113,0.023,53319.0,53315.0,0.001632]
[1725657050376,0.1,53326.0,53316.0,0.00375048]
[1725657050592,0.1,53326.0,53317.0,0.3898]
[1725657050792,0.02120953,53325.0,53318.0,0.04426831]
[1725657051000,0.02120953,53325.0,53318.0,0.04051825]
[1725657051169,0.02120953,53325.0,53317.0,0.3898]
[1725657051536,0.0555246,53328.0,53317.0,0.3898]
[1725657051744,0.02135043,53324.0,53317.0,0.3898]
[1725657051942,0.0555246,53327.0,53318.0,0.014]
[1725657052274,0.18328691,53329.0,53317.0,0.3898]
[1725657052275,0.0555246,53326.0,53317.0,0.3898]
[1725657052425,0.023,53325.0,53317.0,0.3898]
[1725657052661,0.023,53325.0,53318.0,0.0428935]
[1725657052873,0.1555246,53327.0,53318.0,0.0428935]
[1725657052874,0.02135043,53324.0,53318.0,0.0391432]
[1725657053098,0.023,53326.0,53318.0,0.014]
[1725657053099,0.023,53323.0,53318.0,0.014]
[1725657053325,0.023,53326.0,53318.0,0.014]
[1725657053326,0.0555246,53325.0,53318.0,0.014]
[1725657053551,0.0555246,53322.0,53318.0,0.014]
[1725657053778,0.0555246,53321.0,53318.0,0.014]
[1725657054020,0.11104548,53325.0,53318.0,0.014]
[1725657054021,0.0785246,53320.0,53318.0,0.014]
[1725657054252,0.0555246,53319.0,53318.0,0.014]
[1725657054489,0.0555246,53319.0,53316.0,2.0]
[1725657054490,0.123,53319.0,53316.0,2.0]
[1725657054739,0.05551381,53317.0,53316.0,2.0]
[1725657054971,0.09984922,53317.0,53316.0,2.0]
[1725657055234,0.19986505,53317.0,53316.0,2.0]
[1725657055465,0.1443336,53317.0,53316.0,2.0]
[1725657055923,0.1443336,53317.0,53316.0,2.014]
[1725657056138,0.1443336,53317.0,53316.0,2.10868725]
[1725657056348,0.19987725,53317.0,53316.0,2.10868725]
[1725657056589,0.17854365,53317.0,53316.0,2.10868725]
[1725657056792,0.17854365,53317.0,53316.0,2.0]
[1725657056994,0.14431874,53317.0,53316.0,2.0]
[1725657057216,0.17854563,53317.0,53316.0,2.0]
[1725657057404,0.14431874,53317.0,53316.0,2.0]
[1725657057610,0.19986063,53317.0,53316.0,2.014]
[1725657057820,0.09986063,53317.0,53316.0,2.0]
[1725657058052,0.1292644,53317.0,53316.0,2.0]
[1725657058294,0.05072251,53317.0,53316.0,2.5936]
[1725657058534,0.05072251,53317.0,53316.0,2.5796]
[1725657058738,0.05072251,53317.0,53316.0,2.77858307]
[1725657058739,0.02940377,53317.0,53316.0,2.77858307]
[1725657059202,0.02940377,53317.0,53316.0,2.76458307]
[1725657059629,0.02940377,53317.0,53316.0,2.3898]
[1725657059866,0.02940377,53317.0,53316.0,2.4038]
[1725657059867,0.05240377,53317.0,53316.0,2.4038]
[1725657060709,0.05240377,53317.0,53316.0,2.405432]
[1725657061342,0.023,53317.0,53316.0,2.405432]
[1725657061551,0.023,53318.0,53316.0,2.405432]
[1725657061827,0.07854189,53318.0,53316.0,2.405432]
[1725657062242,0.17854189,53318.0,53316.0,2.405432]
[1725657062457,0.05554189,53317.0,53316.0,2.391432]
[1725657062672,0.14431874,53317.0,53316.0,2.015632]
[1725657062880,0.3211,53317.0,53316.0,2.015632]
[1725657063107,0.97696566,53317.0,53316.0,2.001632]
[1725657063320,0.81186566,53317.0,53316.0,1.57938558]
[1725657063756,4.96766517,53317.0,53316.0,0.75038558]
[1725657063974,4.96766517,53317.0,53295.0,0.001]
[1725657063975,0.03,53296.0,53295.0,0.001]
[1725657064307,5.32671936,53296.0,53295.0,0.001]
[1725657064509,8.27566669,53296.0,53295.0,0.001]
[1725657064734,7.04766669,53296.0,53295.0,0.001]
[1725657064950,4.23604082,53296.0,53295.0,0.001]
[1725657065162,4.24404082,53296.0,53295.0,0.001]
[1725657065396,4.25704082,53296.0,53295.0,0.001]
[1725657066073,0.01,53294.0,53270.0,0.3962]
[1725657066335,0.11058276,53286.0,53270.0,0.3962]
[1725657066546,0.101,53285.0,53264.0,0.00162]
[1725657066756,4.490293,53284.0,53264.0,0.00162]
[1725657066980,3.60291143,53284.0,53264.0,0.00162]
[1725657067194,0.002,53278.0,53269.0,0.51839536]
[1725657067416,0.002,53278.0,53264.0,0.00162]
[1725657067417,0.18774,53265.0,53264.0,0.00162]
[1725657067631,0.28774,53265.0,53264.0,0.00162]
[1725657067841,0.28774,53265.0,53264.0,0.00045264]
[1725657068071,4.21608661,53265.0,53264.0,0.00045264]
[1725657068297,0.33808661,53265.0,53264.0,0.00045264]
[1725657068738,0.36108661,53265.0,53264.0,0.00045264]
[1725657069452,0.23808661,53265.0,53264.0,0.39650492]
[1725657069669,0.24208661,53265.0,53264.0,0.43647941]
[1725657070329,0.24208661,53265.0,53264.0,0.00630492]
[1725657070330,0.01742619,53265.0,53264.0,0.00630492]
[1725657070761,0.03,53289.0,53264.0,0.00630492]
[1725657071016,0.002,53290.0,53264.0,0.00630492]
[1725657071017,0.01,53290.0,53264.0,0.00630492]
[1725657071265,0.01394095,53288.0,53271.0,0.3962]
[1725657071518,0.07855596,53306.0,53275.0,0.3962]
[1725657071759,0.07855596,53306.0,53277.0,0.3962]
[1725657071760,0.02344955,53306.0,53277.0,0.3962]
[1725657072054,0.01394095,53305.0,53278.0,0.00375242]
[1725657072283,0.02344955,53306.0,53278.0,0.00375242]
[1725657072284,0.02344955,53306.0,53283.0,0.1966]
[1725657072515,0.001,53288.0,53284.0,0.00375199]
[1725657072774,0.001,53288.0,53286.0,0.002]
[1725657073005,0.02344955,53306.0,53283.0,0.1966]
[1725657073255,0.02344955,53306.0,53284.0,0.02641207]
[1725657073531,0.02344955,53306.0,53290.0,0.189652]
[1725657073786,0.02344955,53306.0,53293.0,0.01]
[1725657074033,0.02344955,53306.0,53294.0,0.00375131]
[1725657074471,0.02344955,53306.0,53295.0,0.1966]
[1725657074688,0.02344955,53306.0,53296.0,0.02698637]
[1725657074920,0.02344955,53306.0,53297.0,0.3962]
[1725657076437,0.023,53305.0,53297.0,0.3962]
[1725657076658,0.023,53305.0,53297.0,0.4032]
[1725657076894,0.023,53305.0,53298.0,0.00375159]
[1725657077144,0.023,53305.0,53299.0,0.04069516]
[1725657077403,0.023,53305.0,53301.0,0.1966]
[1725657077632,0.02344955,53306.0,53302.0,0.39995159]
[1725657077896,0.02344955,53306.0,53297.0,0.4032]
[1725657078191,0.02344955,53306.0,53291.0,0.3962]
[1725657078402,0.02941304,53304.0,53297.0,0.014]
[1725657078632,0.02941304,53304.0,53285.0,0.3962]
[1725657078858,0.03719673,53303.0,53302.0,0.008]
[1725657079332,0.03719673,53303.0,53280.0,0.55430836]
[1725657079333,0.001,53302.0,53280.0,0.55430836]
[1725657079646,0.001,53302.0,53291.0,0.001]
[1725657079891,0.024,53302.0,53280.0,0.55430836]
[1725657080162,0.024,53302.0,53278.0,0.001628]
[1725657080163,0.08523479,53295.0,53281.0,0.55430836]
[1725657080397,0.05523479,53292.0,53281.0,0.55430836]
[1725657080632,0.08385566,53294.0,53278.0,0.001628]
[1725657080633,0.101,53294.0,53278.0,0.001628]
[1725657080858,0.01410529,53291.0,53278.0,0.001628]
[1725657081092,0.01,53289.0,53278.0,0.001628]
[1725657081303,0.001,53285.0,53278.0,0.001628]
[1725657081765,0.002,53284.0,53278.0,0.001628]
[1725657082005,0.002,53284.0,53261.0,0.00162]
[1725657082007,0.01,53279.0,53261.0,0.00162]
[1725657082221,0.03706876,53284.0,53268.0,0.55430836]
[1725657082222,0.01,53276.0,53268.0,0.55430836]
[1725657082442,0.01,53276.0,53261.0,0.00162]
[1725657082443,0.002,53274.0,53261.0,0.00162]
[1725657082869,0.18774,53265.0,53261.0,0.00162]
[1725657083095,0.28774,53265.0,53261.0,0.00162]
[1725657083327,0.28774,53265.0,53243.0,0.01162]
[1725657083328,0.187779,53254.0,53253.0,9.2e-07]
[1725657083749,0.3018049,53254.0,53253.0,9.2e-07]
[1725657083960,0.33124714,53254.0,53253.0,9.2e-07]
[1725657084186,0.35424714,53254.0,53253.0,9.2e-07]
[1725657084418,0.1878,53248.0,53247.0,1e-06]
[1725657084676,0.2878,53248.0,53247.0,1e-06]
[1725657084891,0.30178272,53248.0,53247.0,1e-06]
[1725657085376,0.187821,53242.0,53241.0,1e-06]
[1725657085585,0.287821,53242.0,53241.0,1e-06]
[1725657085804,0.30147976,53242.0,53241.0,1e-06]
[1725657086019,0.30147976,53242.0,53241.0,0.381101]
[1725657086235,0.20147976,53242.0,53241.0,0.381101]
[1725657086675,0.23092433,53242.0,53241.0,0.381101]
[1725657087776,0.23092433,53242.0,53241.0,0.562401]
[1725657087993,0.22676023,53242.0,53241.0,0.562401]
[1725657089584,0.13729782,53294.0,53241.0,0.562401]
[1725657089585,0.039,53278.0,53249.0,0.3811]
[1725657089763,0.55430836,53267.0,53251.0,0.3811]
[1725657090011,0.039,53278.0,53252.0,0.00375454]
[1725657090235,0.039,53278.0,53251.0,0.3811]
[1725657090236,0.02943555,53264.0,53251.0,0.3811]
[1725657090438,0.01,53273.0,53251.0,0.3811]
[1725657090650,0.002,53270.0,53251.0,0.3811]
[1725657090867,0.02943867,53261.0,53251.0,0.3811]
[1725657091089,0.002,53274.0,53251.0,0.3811]
[1725657091302,0.02943796,53266.0,53252.0,0.03811]
[1725657091521,0.023,53265.0,53252.0,0.00375542]
[1725657091736,0.023,53275.0,53251.0,0.3811]
[1725657092620,0.039,53277.0,53252.0,0.00375503]
[1725657093033,0.039,53277.0,53253.0,0.5624]
[1725657093670,0.039,53277.0,53254.0,0.55430836]
[1725657093887,0.039,53277.0,53255.0,0.11167084]
[1725657094111,0.039,53277.0,53256.0,0.00375442]
[1725657094112,0.187768,53257.0,53256.0,0.00375442]
[1725657094333,0.039,53277.0,53253.0,0.5624]
[1725657094334,0.938895,53254.0,53253.0,0.5624]
[1725657095075,0.375558,53254.0,53246.0,0.3811]
[1725657095293,0.123,53253.0,53246.0,0.3811]
[1725657095981,0.023,53253.0,53246.0,0.3811]
[1725657096196,0.0013258,53252.0,53246.0,0.3811]
[1725657097065,0.02944039,53251.0,53246.0,0.3811]
[1725657097331,0.187804,53247.0,53246.0,0.3811]
[1725657097548,0.210804,53247.0,53246.0,0.3811]
[1725657098250,0.210804,53247.0,53241.0,0.001001]
[1725657098251,0.123,53247.0,53241.0,0.001001]
[1725657098464,0.187821,53242.0,53241.0,0.001001]
[1725657098685,0.310821,53242.0,53241.0,0.001001]
[1725657098907,0.3121468,53242.0,53241.0,0.001001]
[1725657099343,0.34159283,53242.0,53241.0,0.001001]
[1725657100284,0.34026703,53242.0,53241.0,0.001001]
[1725657100502,0.310821,53242.0,53241.0,1e-06]
[1725657101020,0.287821,53242.0,53241.0,0.413601]
[1725657101258,0.287821,53242.0,53241.0,0.45566273]
[1725657101489,0.187821,53242.0,53241.0,0.612701]
[1725657102904,0.187815,53244.0,53242.0,0.4136]
[1725657103159,0.187818,53243.0,53242.0,0.4136]
[1725657103373,0.187818,53243.0,53242.0,0.4800341]
[1725657103588,0.1,53256.0,53242.0,0.4880341]
[1725657103837,0.187814,53244.0,53243.0,0.00375517]
[1725657104050,0.187818,53243.0,53242.0,0.01]
[1725657104265,0.187818,53243.0,53242.0,0.0330741]
[1725657104530,0.187818,53243.0,53242.0,0.4353741]
[1725657105228,0.187818,53243.0,53242.0,0.4253741]
[1725657105441,0.21724019,53243.0,53242.0,0.4353741]
[1725657105658,0.21724019,53243.0,53242.0,0.4253741]
[1725657106296,0.21724019,53243.0,53242.0,0.4353741]
[1725657106508,0.21724019,53243.0,53242.0,0.4123]
[1725657107844,0.21724019,53243.0,53242.0,0.4143]
[1725657108987,0.21724019,53243.0,53242.0,0.4123]
[1725657109648,0.21724019,53243.0,53242.0,0.4323]
[1725657109649,0.02942219,53243.0,53242.0,0.4323]
[1725657109867,0.187804,53247.0,53246.0,0.4123]
[1725657110057,0.187804,53247.0,53246.0,0.47466]
[1725657110331,0.21722489,53247.0,53246.0,0.47466]
[1725657111467,0.187804,53247.0,53246.0,0.47666]
[1725657111684,0.0684,53275.0,53253.0,0.01]
[1725657111912,0.187782,53254.0,53253.0,0.01]
[1725657112152,0.187782,53253.0,53252.0,0.4023]
[1725657115044,0.21720127,53253.0,53252.0,0.4023]
[1725657115268,0.21720127,53253.0,53252.0,0.4343]
[1725657115269,0.02941927,53253.0,53252.0,0.4343]
[1725657115485,0.02941927,53253.0,53252.0,0.49686]
[1725657115696,0.02941927,53253.0,53252.0,0.49486]
[1725657116133,0.0684,53275.0,53253.0,0.01]
[1725657116384,0.0684,53275.0,53254.0,0.00375414]
[1725657116385,0.023,53274.0,53254.0,0.00375414]
[1725657116589,0.023,53274.0,53255.0,0.06899141]
[1725657116804,0.023,53274.0,53256.0,0.00375415]
[1725657117891,0.023,53274.0,53252.0,0.4023]
[1725657118118,0.0294172,53269.0,53252.0,0.4023]
[1725657118329,0.02943718,53268.0,53252.0,0.4023]
[1725657118555,0.05243718,53268.0,53252.0,0.4023]
[1725657118778,0.02943718,53267.0,53252.0,0.4023]
[1725657119022,0.023,53266.0,53253.0,0.05936]
[1725657119226,0.023,53266.0,53254.0,0.00375432]
[1725657119446,0.023,53268.0,53255.0,0.00375456]
[1725657119661,0.023816,53272.0,53255.0,0.00375456]
[1725657119893,0.029415,53264.0,53256.0,0.04654146]
[1725657120149,0.023,53263.0,53256.0,0.04654146]
[1725657121017,0.023,53263.0,53252.0,0.4023]
[1725657121232,0.023,53263.0,53253.0,0.00375474]
[1725657121693,0.023,53263.0,53252.0,0.4023]
[1725657122571,0.0684,53262.0,53245.0,0.3751]
[1725657122829,0.05549103,53259.0,53245.0,0.3751]
[1725657123105,0.05549103,53257.0,53245.0,0.3751]
[1725657123322,0.05549103,53257.0,53242.0,0.001632]
[1725657123323,0.05549103,53254.0,53242.0,0.001632]
[1725657123537,0.05549103,53255.0,53242.0,0.001632]
[1725657123781,0.13872758,53251.0,53242.0,0.001632]
[1725657124018,0.05549103,53249.0,53243.0,0.00375596]
[1725657124229,0.023,53248.0,53243.0,0.00375596]
[1725657124448,0.17849103,53250.0,53243.0,0.00375596]
[1725657124702,0.05549103,53249.0,53243.0,0.00375596]
[1725657124921,0.05549103,53249.0,53242.0,0.001632]
[1725657124922,0.023,53248.0,53242.0,0.001632]
[1725657125127,0.1,53250.0,53244.0,0.00375562]
[1725657125363,0.1,53250.0,53245.0,0.1894]
[1725657125572,0.05549103,53249.0,53245.0,0.1894]
[1725657126200,0.1,53250.0,53245.0,0.1894]
[1725657126201,0.15549103,53250.0,53245.0,0.1894]
[1725657126428,0.05549103,53249.0,53245.0,0.1894]
[1725657126860,0.05549103,53249.0,53245.0,0.2482065]
[1725657126861,0.05549103,53248.0,53245.0,0.2482065]
[1725657127077,0.11098207,53253.0,53245.0,0.2482065]
[1725657127078,0.05576714,53251.0,53246.0,0.39815546]
[1725657127292,0.13872759,53258.0,53246.0,0.39815546]
[1725657127293,0.05576714,53256.0,53247.0,0.01]
[1725657127530,0.05576714,53256.0,53253.0,0.01]
[1725657127739,0.08365072,53258.0,53254.0,0.3844]
[1725657127945,0.05576714,53261.0,53254.0,0.3844]
[1725657128158,0.05576714,53260.0,53254.0,0.3844]
[1725657128372,0.05576714,53260.0,53255.0,0.03944]
[1725657128584,0.08446672,53263.0,53255.0,0.03944]
[1725657128585,0.05576714,53261.0,53255.0,0.03944]
[1725657128808,0.08446672,53263.0,53258.0,0.01]
[1725657128809,0.05576714,53262.0,53258.0,0.01]
[1725657129030,0.000816,53263.0,53260.0,0.3844]
[1725657129299,0.000816,53263.0,53261.0,0.00375428]
[1725657129516,0.000816,53263.0,53262.0,0.43641543]